Cogmind - Beta 13 @@@ ROGUE MODE // 2024.04.10 @ 20:58:59 Player: Ragonath Result: Core destroyed Performance ------------- Evolutions (1) 500 Regions Visited (2) 400 Robots Destroyed (4) 20 Value Destroyed (9) 9 Prototype IDs (0) 0 Alien Tech Used (0) 0 Bonus (0) 0 TOTAL SCORE: 929 Bonus ------- None Cogmind --------- Core Integrity 0/400 Matter 296/300 Energy 100/100 System Corruption 3% Temperature Cool (0) Movement Core (50) Location -9/Materials Parts ------- > --- POWER (1) -------- (None) > --- PROPULSION (4) --- (None) > --- UTILITY (2) ------ (None) > --- WEAPON (2) ------- (None) > --- INVENTORY (5) ---- Small Battery (100) Peak State ------------ > --- POWER ------------ Ion Engine > --- PROPULSION ------- Wheel Compact Wheel > --- UTILITY ---------- Small Storage Unit > --- WEAPON ----------- Medium Laser Medium Laser > --- INVENTORY -------- (None) [Rating: 6] Favorites ----------- Power Ion Engine Engine Ion Engine Power Core Nuclear Core Propulsion Wheel Treads Light Treads Wheel Wheel Utility Small Storage Unit Device ECM Suite Storage Small Storage Unit Weapon Medium Laser Energy Gun Medium Laser Build | -11 -10 -9 ------- Run | Yrd Mat Mat Slots Evolved 2 | . . 2 Power . | . . . Propulsion 2 | . . 2 Utility . | . . . Weapon . | . . . Parts Attached 15 | 8 2 5 Power 2 | 1 . 1 Engine 1 | 1 . . Core 1 | . . 1 Reactor . | . . . Propulsion 9 | 4 2 3 Treads 2 | 2 . . Leg . | . . . Wheel 7 | 2 2 3 Hover . | . . . Flight . | . . . Utility 2 | 1 . 1 Device 1 | . . 1 Storage 1 | 1 . . Processor . | . . . Hackware . | . . . Protection . | . . . Artifact . | . . . Weapon 2 | 2 . . Energy Gun 2 | 2 . . Energy Cannon . | . . . Ballistic Gun . | . . . Ballistic Cannon . | . . . Launcher . | . . . Special Weapon . | . . . Impact Weapon . | . . . Slashing Weapon . | . . . Piercing Weapon . | . . . Special Melee Weapon . | . . . Unidentified Prototypes . | . . . Parts Lost 10 | . 2 8 Power 2 | . 1 1 Propulsion 6 | . 1 5 Utility 2 | . . 2 Weapon . | . . . Highest Loss Streak 5 | . 1 5 To Critical Strikes . | . . . Average Slot Usage (%) 45 | . 44 46 Core 1 | . . 1 Wheel 26 | . 26 25 Device 5 | . . 9 Storage 11 | . 14 9 Naked Turns 11 | . . 11 Heaviest Build 14 | 14 10 14 Greatest Support 46 | 40 26 46 Greatest Overweight (x) 4 | 2 . 4 Average Overweight (x) . | . . . Largest Inventory Capacity 8 | 8 8 8 Average Capacity 7 | 7 8 7 Most Carried 4 | 4 4 2 Average Carried 1 | . 3 1 Final Capacity 8 | 8 8 5 Final Carried 4 | 4 3 1 Class Distribution -------------------- 75% | Mutant 24% | Scavenger-Mutant Dominant Class ---------------- Mutant | -10/Materials Mutant | -9/Materials Resources | -11 -10 -9 ----------- Run | Yrd Mat Mat Matter Collected 276 | 276 . . Remotely . | . . . Salvage Created 139 | 123 . 16 Parts 6 | 4 . 2 Haulers Intercepted . | . . . Recyclers Shooed . | . . . Parts Field Recycled . | . . . Retrieved Matter . | . . . Parts Self-Destructed . | . . . Prevented . | . . . Kills | -11 -10 -9 ------- Run | Yrd Mat Mat Combat Hostiles Destroyed . | . . . Classes Destroyed 2 | 2 . . Worker 3 | 2 . 1 Recycler 1 | 1 . . Best Kill Streak 3 | 3 . 1 Combat Bots Only . | . . . Max Kills in Single Turn 1 | 1 . 1 Gunslinging . | . . . Exploded . | . . . Melee . | . . . Uniques/NPCs Destroyed . | . . . Combat | -11 -10 -9 -------- Run | Yrd Mat Mat Hostile Shots Fired 133 | . 13 120 Missed 49 | . 5 44 Damage Taken 906 | 2 149 755 Core 433 | . 33 400 Absorbed by Shields . | . . . Core Remaining (%) 93 | 100 86 . Volleys Fired 6 | 6 . . Largest 2 | 2 . . Hottest 100 | 100 . . Shots Fired 12 | 12 . . Gun 12 | 12 . . Cannon . | . . . Launcher . | . . . Special . | . . . Kinetic . | . . . Thermal 12 | 12 . . Explosive . | . . . Electromagnetic . | . . . Robot Hit Streak 5 | 5 . . Robot Miss Streak 2 | 2 . . Penetration Max . | . . . Secondary Targets . | . . . Shots Hit Robots 7 | 7 . . Core Hits 8 | 4 . 4 Critical Kills . | . . . Critical Parts Destroyed . | . . . Critical Strikes . | . . . Melee Attacks . | . . . Impact . | . . . Slashing . | . . . Piercing . | . . . Sneak Attacks . | . . . Combat Hostiles . | . . . Follow-up Attacks . | . . . Damage Inflicted 135 | 93 . 42 Guns 86 | 86 . . Cannons . | . . . Explosions . | . . . Melee . | . . . Ramming 49 | 7 . 42 Kinetic . | . . . Thermal 86 | 86 . . Explosive . | . . . Electromagnetic . | . . . Impact . | . . . Slashing . | . . . Piercing . | . . . Highest Corruption 3 | . 1 3 Average Corruption 1 | . 1 2 Corruption Purged . | . . . Corruption Blocked . | . . . Overload Shots . | . . . Overflow Damage . | . . . Projectiles . | . . . Explosions . | . . . Melee . | . . . Knockbacks . | . . . Impact . | . . . Kinetic . | . . . Secondary . | . . . Self-Inflicted Damage 22 | 2 . 20 Shots . | . . . Rammed 10 | 2 . 8 Targets Rammed 10 | 2 . 8 Kicked . | . . . Crushed . | . . . Highest Temperature 156 | 156 . . Average Temperature 69 | 69 . . Received Heat Transfer 216 | . 48 168 Siege Activations . | . . . Robots Corrupted . | . . . Combat Hostiles . | . . . Parts Fried . | . . . Impact Corruptions . | . . . Robots Melted . | . . . Combat Hostiles . | . . . Parts Melted . | . . . Heat Transferred 259 | 259 . . Parts Sabotaged . | . . . Parts Stolen . | . . . Parts Stripped . | . . . Power Chain Reactions . | . . . Alert | -11 -10 -9 ------- Run | Yrd Mat Mat Peak Influence 120 | 15 70 120 Initial 29 | . 9 29 Average 27 | 3 33 43 Maximum Alert Level . | . . . Low Security (%) 100 | 100 100 100 Level 1 . | . . . Level 2 . | . . . Level 3 . | . . . Level 4 . | . . . Level 5 . | . . . High Security . | . . . Max Security . | . . . Squads Dispatched 2 | . 2 . Investigation . | . . . Extermination . | . . . Reinforcement 2 | . 2 . Assault . | . . . Garrison . | . . . Intercept . | . . . Searches Triggered . | . . . Construction Impeded . | . . . Haulers Reinforced . | . . . Active Scanning Responses . | . . . Cargo Convoy Interrupts . | . . . Stealth | -11 -10 -9 --------- Run | Yrd Mat Mat Distress Signals 2 | . . 2 Communications Jammed . | . . . Distress Signals . | . . . Times Spotted 27 | . 6 21 Peak Tracking Total 13 | . 6 13 Tactical Retreats 3 | . 1 2 Traps | -11 -10 -9 ------- Run | Yrd Mat Mat Traps Triggered 1 | . 1 . Indirectly . | . . . Trap Hack Attempts . | . . . Triggered . | . . . Disarmed . | . . . Reprogrammed . | . . . Reused . | . . . Traps Extracted . | . . . Installed . | . . . Triggered . | . . . Machines | -11 -10 -9 ---------- Run | Yrd Mat Mat Machines Disabled . | . . . Max in Single Turn . | . . . Machines Repaired . | . . . Machines Dismantled . | . . . Machines Sabotaged . | . . . Overloaded Fab Kills . | . . . Hacking | -11 -10 -9 --------- Run | Yrd Mat Mat Machines Accessed 1 | . 1 . Terminals 1 | . 1 . Fabricators . | . . . Repair Stations . | . . . Recycling Units . | . . . Scanalyzers . | . . . Garrison Access . | . . . Total Hacks 3 | . 3 . Successful 2 | . 2 . Failed 1 | . 1 . Catastrophic . | . . . Database Lockouts . | . . . Manual . | . . . Terminals 3 | . 3 . Fabricators . | . . . Repair Stations . | . . . Recycling Units . | . . . Scanalyzers . | . . . Garrison Access . | . . . Terminal Hacks 2 | . 2 . Record 2 | . 2 . Fabricator Hacks . | . . . Repair Station Hacks . | . . . Recycling Unit Hacks . | . . . Scanalyzer . | . . . Garrison Access Hacks . | . . . Unauthorized Hacks . | . . . Terminals . | . . . Fabricators . | . . . Repair Stations . | . . . Recycling Units . | . . . Scanalyzers . | . . . Garrison Access . | . . . Data Cores Recovered . | . . . Used . | . . . Hacking Detections . | . . . Full Trace Events . | . . . Feedback Events . | . . . Feedback Blocked . | . . . Robot Schematics Acquired . | . . . Robots Built . | . . . Authchips . | . . . Time . | . . . Total Robot Build Rating . | . . . Part Schematics Acquired . | . . . Parts Built . | . . . Authchips . | . . . Time . | . . . Total Part Build Rating . | . . . Parts Repaired . | . . . Time . | . . . Parts Recycled . | . . . Recycled Matter . | . . . Retrieved Matter . | . . . Retrieved Components . | . . . Parts Scanalyzed . | . . . Part Schematics Acquired . | . . . Parts Damaged . | . . . Bothacking | -11 -10 -9 ------------ Run | Yrd Mat Mat Used RIF Installer . | . . . Robots Hacked . | . . . Non-combat . | . . . Combat . | . . . Robot Hacks Applied . | . . . Relay Couplers Released . | . . . Fabnet Peak Effective % . | . . . Robots Rewired . | . . . Allies Hacked . | . . . Hacks Repelled . | . . . Allies | -11 -10 -9 -------- Run | Yrd Mat Mat Total Allies . | . . . Largest Group . | . . . Highest-Rated Group . | . . . Highest-Rated Ally . | . . . Total Orders . | . . . Ally Attacks . | . . . Total Damage . | . . . Kills . | . . . Allies Corrupted . | . . . Allies Melted . | . . . Intel | -11 -10 -9 ------- Run | Yrd Mat Mat Robot Analysis Total . | . . . Derelict Logs Recovered . | . . . Drone Launches . | . . . Drone Recoveries . | . . . Exploration | -11 -10 -9 ------------- Run | Yrd Mat Mat Turns Passed 453 | 148 123 182 Spaces Moved 385 | 101 134 150 Core 73 | 31 . 42 Treads 18 | 18 . . Legs . | . . . Wheels 294 | 52 134 108 Hover . | . . . Flight . | . . . Fastest Speed 50 | 50 80 50 Average Speed 96 | 106 89 96 Slowest Speed 250 | 160 100 250 Overloaded Moves . | . . . Propulsion Burnouts . | . . . Robots Hopped . | . . . Cave-ins Triggered . | . . . Exploration Rate (%) 18 | 7 23 25 Regions Visited 2 Branch Regions . Pre-discovered Areas . | . . . Known Exits Taken . | . . . Unknown Exits Taken 2 | 1 1 . Scrap Searched . | . . . Spaces Dug . | . . . Terrain Destroyed . | . . . Melee . | . . . Projectile . | . . . AOE . | . . . Terrain Rammed . | . . . Walls Destroyed . | . . . Machines Disabled . | . . . Actions | -11 -10 -9 --------- Run | Yrd Mat Mat Total 453 | 130 137 186 Wait 21 | . . 21 Move 383 | 100 133 150 Hop . | . . . Pick Up 15 | 12 . 3 Fast Attach . | . . . Attach 14 | 8 1 5 Detach . | . . . Swap 1 | . 1 . Drop 4 | 2 2 . Fire 6 | 6 . . Melee . | . . . Ram 8 | 1 . 7 Kick . | . . . Crush 1 | 1 . . Escape Stasis . | . . . Rewire . | . . . Trap . | . . . Miscellaneous . | . . . Route ------- -11/Scrapyard -10/Materials -9/Materials History --------- Turn | Location | Event 15 | -11/Scrapyard | Discovered new exit (range 15) 149 | -11/Scrapyard | Entered Materials 268 | -10/Materials | Discovered new exit (range 4) 272 | -10/Materials | Entered another Materials area 272 | -9/Materials | Evolved 2 slots: Propulsion x2 411 | -9/Materials | Core integrity fell below 50% 423 | -9/Materials | Lost 5 parts (5n) 425 | -9/Materials | Core integrity fell below 20% 454 | -9/Materials | Core destroyed Last Messages --------------- U-05 Engineer lays Concrete. Acquired Sml. Battery. Wheel destroyed. T-07 Excavator is excavating. K-01 Serf collects debris. W-16 Scout sends out distress signal. Wheel destroyed. S-10 Pest destroyed. Com. Wheel destroyed. Acquired Nuclear Core. Nuclear Core destroyed. Sml. Storage Unit destroyed. Slammed into S-10 Pest. Destabilizing: System corrupted (+1). Slammed into S-10 Pest. Slammed into R-06 Scavenger. ECM Suite destroyed. System corrupted by crushing effect (+2). Slammed into K-01 Serf. K-01 Serf destroyed. Map ----- +----------------------------------------------------+ | ????????????????????????????????????????????? | | ????????????????????????????????????????????? | | ????????????????????????????????????????????? | | ????????????????????????????????????????????? | | ????????????????????????????????????????????? | | ????????????????????????????????????????????? | | ????????????????????????????????????????????? | | ????????????????????????????????????????????? | | ????????????????????????????????????????????? | | ????????????????????????????????????????????? | | ????????????????????????????????????????????? | | ????????????????????????????????????????????? | | ????????????????????????????????????????????? | | ????????????????????????????????????????????? | | ????????????????????????#+#?????????????????? | | ???????????????????????? ?????????????????? | | ???????????????????????? ?????????????????? | | ???????????????????????? ?????????????????? | | ????????????????????????# #?????????????????? | | ????????????????????????#Y#?????????????????? | | ????????????????????????+ #?????????????????? | | ????????????????????????# #?????????????????? | | ????????????????????????# #?????????????????? | | ????????????????????????#k#?????????????????? | | ????????????????????????#%#?????????????????? | | ????????????????????????#@#?????????????????? | | ?????????????""?????????# #?????????????????? | | ?????????????""?????????# #?????????????????? | | ????????????? ???####### #?????????????????? | | ???????????###+####[ # #?????????????????? | | ???????????# # # #?????????????????? | | ???????????# # # #??#####??????????? | | ???????????? # " # #? #??????????? | | ?????????????""" # T #s# #??????????? | | #####?????????"" # " #s# ! !! #??????????? | | #[[ #??????????" #? # + !! #??????????? | | #[[ #############+####/## # #??????????? | | #** + #??????????? | | #** #+############+####+########??????????? | | #** # ????????? ?? ?????????????????? | | #* #[ ???????? ??"" ?????????????????? | | ##### # ?????? " #""" ????????????????? | | ##### # !/ #????Y" #""" ????????????????? | | # # // #???""" # ???????????????? | | [ # # /[ #??? # ???????????????? | | =%= + ########??##############??????????????? | | *! # #?????????????????????????????????????? | | ##### #?????????????????????????????????????? | | ???? ?????????????????????????????????????? | | ??? ????????????????????????????????????? | +----------------------------------------------------+ Best States ------------- Heat Dissipation 28 Energy Generation 14 Energy Capacity 250 Matter Stores 300 Matter Capacity 300 Sight Range 16 Terrain Scan Density 10 ECM Strength 1 Evasion (%) 50 Recoil Reduction 2 Item Schematics ----------------- None Robot Schematics ------------------ None Fabricated ------------ Nothing Alien Tech Used ----------------- None Achievements -------------- None Challenges ------------ None Game ------ Seed ThermoelectricSpectralTrap Manual? 0 Play Time 00:08:27 Cumulative 7.7 hours Start 2024.04.10 @ 20:52:47 End 2024.04.10 @ 20:58:59 Sessions 1 Manual Loads 0 Difficulty Rogue Special Mode None Game No. 15 Rogue 15 Adventurer 0 Explorer 0 Win Type - Total 0 Types 0/0/0/0/0/0/0/0/0 Lore% 6 Gallery% 12 Achievement% 12 Wizard Run 0 Options --------- Layout 1 ASCII 0 Keyboard 0 Movement Mouse Keybinds 0 Fullscreen 1 Font 32/SmallcapsGlow Map View 50x35 Zoom Use 0% Tactical HUD 0 Map Filters NONE Filters NONE Steam 1 RUN: cb22cdaf-b7d4-4546-ace3-cb6a423ab501